[Event "Live Chess"]
[Site "Chess.com"]
[Date "2023.05.20"]
[Round "-"]
[White "Pandreq"]
[Black "xx_blindpuffin_xx"]
[Result "0-1"]
[WhiteElo "1255"]
[BlackElo "2185"]
[TimeControl "300"]
[EndTime "14:20:07 PDT"]
[Termination "xx_blindpuffin_xx won by checkmate"]

1. d4 {[%clk 0:04:56.6]} 1... d5 {[%clk 0:04:58.2]} 2. c4 {[%clk 0:04:55.8]}
2... e6 {[%clk 0:04:57.3]} 3. Nc3 {[%clk 0:04:54.4]} 3... c6 {[%clk 0:04:56.5]}
4. cxd5 {[%clk 0:04:52.6]} 4... exd5 {[%clk 0:04:55.4]} 5. Bf4 {[%clk
0:04:50.6]} 5... Bd6 {[%clk 0:04:54.5]} 6. Bxd6 {[%clk 0:04:49.1]} 6... Qxd6
{[%clk 0:04:54.4]} 7. Nf3 {[%clk 0:04:47.9]} 7... Ne7 {[%clk 0:04:53.8]} 8. e3
{[%clk 0:04:46.2]} 8... O-O {[%clk 0:04:53]} 9. Bd3 {[%clk 0:04:44.9]} 9... Bf5
{[%clk 0:04:52.4]} 10. O-O {[%clk 0:04:40.7]} 10... Nd7 {[%clk 0:04:48]} 11. Ne2
{[%clk 0:04:27.4]} 11... Rad8 {[%clk 0:04:38.3]} 12. Ng3 {[%clk 0:04:25.8]}
12... Bg6 {[%clk 0:04:35.9]} 13. Nh4 {[%clk 0:04:19.5]} 13... f5 {[%clk
0:04:32]} 14. Nxg6 {[%clk 0:04:13.4]} 14... hxg6 {[%clk 0:04:31.9]} 15. h4
{[%clk 0:04:02.3]} 15... Nf6 {[%clk 0:04:28.1]} 16. h5 {[%clk 0:03:57.9]} 16...
Ne4 {[%clk 0:04:11.3]} 17. Nxe4 {[%clk 0:03:42.6]} 17... fxe4 {[%clk 0:04:11.2]}
18. Be2 {[%clk 0:03:41.8]} 18... gxh5 {[%clk 0:04:05]} 19. Bxh5 {[%clk
0:03:40.4]} 19... Rf6 {[%clk 0:04:04]} 20. Qg4 {[%clk 0:03:17.3]} 20... Rh6
{[%clk 0:03:58.8]} 21. Qd1 {[%clk 0:02:57.4]} 21... g6 {[%clk 0:03:56.3]} 22.
Be2 {[%clk 0:02:54.8]} 22... Qh2# {[%clk 0:03:54.6]} 0-1

[Event "Live Chess"]
[Site "Chess.com"]
[Date "2023.05.20"]
[Round "-"]
[White "JoshMcK"]
[Black "Long1968"]
[Result "0-1"]
[WhiteElo "1553"]
[BlackElo "1209"]
[TimeControl "300"]
[EndTime "14:20:16 PDT"]
[Termination "Long1968 won by resignation"]

1. e4 {[%clk 0:04:59]} 1... e6 {[%clk 0:04:55.6]} 2. d4 {[%clk 0:04:56.6]} 2...
d5 {[%clk 0:04:53.3]} 3. Nc3 {[%clk 0:04:53.9]} 3... Nf6 {[%clk 0:04:50]} 4. e5
{[%clk 0:04:52.8]} 4... Nfd7 {[%clk 0:04:48]} 5. f4 {[%clk 0:04:52.4]} 5... c5
{[%clk 0:04:45.8]} 6. Nf3 {[%clk 0:04:51.6]} 6... Nc6 {[%clk 0:04:43.1]} 7. Be3
{[%clk 0:04:50.8]} 7... b6 {[%clk 0:04:37.3]} 8. Bb5 {[%clk 0:04:40.5]} 8... Qc7
{[%clk 0:04:24.8]} 9. O-O {[%clk 0:04:34.1]} 9... a6 {[%clk 0:04:17.7]} 10. Bxc6
{[%clk 0:04:32.7]} 10... Qxc6 {[%clk 0:04:14.4]} 11. dxc5 {[%clk 0:04:31.4]}
11... Nxc5 {[%clk 0:04:11.2]} 12. Nd4 {[%clk 0:04:26.2]} 12... Qc7 {[%clk
0:04:05.1]} 13. Nce2 {[%clk 0:04:17.1]} 13... Bb7 {[%clk 0:03:57.9]} 14. f5
{[%clk 0:04:01.7]} 14... Bc8 {[%clk 0:03:46.1]} 15. fxe6 {[%clk 0:03:59.3]}
15... Bxe6 {[%clk 0:03:42.3]} 16. Nxe6 {[%clk 0:03:52.1]} 16... fxe6 {[%clk
0:03:39.1]} 17. Bd4 {[%clk 0:03:43.1]} 17... O-O-O {[%clk 0:03:28.3]} 18. Nf4
{[%clk 0:03:41.2]} 18... g5 {[%clk 0:03:11.8]} 19. Bxc5 {[%clk 0:03:36.8]} 19...
Bxc5+ {[%clk 0:03:07.8]} 20. Kh1 {[%clk 0:03:32.2]} 20... gxf4 {[%clk
0:03:05.3]} 21. Rxf4 {[%clk 0:03:30.8]} 21... Qxe5 {[%clk 0:03:01.6]} 22. Qf1
{[%clk 0:03:26.3]} 22... Rdf8 {[%clk 0:02:54.1]} 23. Qxa6+ {[%clk 0:03:16.9]}
23... Kb8 {[%clk 0:02:43.1]} 24. Rxf8+ {[%clk 0:03:10]} 24... Rxf8 {[%clk
0:02:39]} 25. Rf1 {[%clk 0:03:09.4]} 25... Rxf1+ {[%clk 0:02:30.7]} 26. Qxf1
{[%clk 0:03:09.3]} 26... Qf5 {[%clk 0:02:12.8]} 27. Qxf5 {[%clk 0:03:04]} 27...
exf5 {[%clk 0:02:09.4]} 28. g3 {[%clk 0:03:03.9]} 28... Kc7 {[%clk 0:02:04.6]}
29. Kg2 {[%clk 0:03:03.3]} 29... Kd6 {[%clk 0:02:02.6]} 30. Kf3 {[%clk 0:03:03]}
30... Ke5 {[%clk 0:02:00.7]} 31. h3 {[%clk 0:03:01.3]} 31... h5 {[%clk
0:01:58.2]} 32. c3 {[%clk 0:02:53.4]} 32... Be7 {[%clk 0:01:39.5]} 33. Ke3
{[%clk 0:02:44.6]} 33... h4 {[%clk 0:01:28.5]} 34. Kf3 {[%clk 0:02:40.8]} 34...
hxg3 {[%clk 0:01:19.9]} 35. Kxg3 {[%clk 0:02:38.8]} 35... Ke4 {[%clk 0:01:17.3]}
36. h4 {[%clk 0:02:36.4]} 36... f4+ {[%clk 0:01:14.7]} 37. Kf2 {[%clk
0:02:33.9]} 37... Bxh4+ {[%clk 0:01:09.7]} 38. Kf1 {[%clk 0:02:33.8]} 38... Kf3
{[%clk 0:01:04.4]} 39. b3 {[%clk 0:02:33.7]} 39... Ke3 {[%clk 0:00:58.3]} 40. c4
{[%clk 0:02:32.7]} 40... dxc4 {[%clk 0:00:55.6]} 41. bxc4 {[%clk 0:02:31]} 41...
Kd4 {[%clk 0:00:53.3]} 42. c5 {[%clk 0:02:25.3]} 42... Kxc5 {[%clk 0:00:50.7]}
43. Ke2 {[%clk 0:02:24.6]} 43... Bg3 {[%clk 0:00:47.5]} 44. Kf3 {[%clk
0:02:24.5]} 44... Kb4 {[%clk 0:00:44.4]} 45. Ke2 {[%clk 0:02:23.1]} 45... Ka3
{[%clk 0:00:41.8]} 46. Kd1 {[%clk 0:02:23]} 46... b5 {[%clk 0:00:39.5]} 47. Kc2
{[%clk 0:02:22.9]} 47... b4 {[%clk 0:00:37.6]} 48. Kb1 {[%clk 0:02:21.5]} 48...
f3 {[%clk 0:00:35.5]} 49. Ka1 {[%clk 0:02:17.8]} 49... f2 {[%clk 0:00:32.5]} 0-1

[Event "Live Chess"]
[Site "Chess.com"]
[Date "2023.05.20"]
[Round "-"]
[White "FailsGambits"]
[Black "toog"]
[Result "0-1"]
[WhiteElo "1321"]
[BlackElo "2615"]
[TimeControl "300"]
[EndTime "14:20:17 PDT"]
[Termination "toog won by resignation"]

1. e4 {[%clk 0:04:59.5]} 1... e5 {[%clk 0:04:55.2]} 2. Nf3 {[%clk 0:04:59]} 2...
Nf6 {[%clk 0:04:53.4]} 3. Nxe5 {[%clk 0:04:58]} 3... d6 {[%clk 0:04:52.4]} 4.
Nf3 {[%clk 0:04:57.1]} 4... Nxe4 {[%clk 0:04:51.7]} 5. d3 {[%clk 0:04:56.1]}
5... Nf6 {[%clk 0:04:50.8]} 6. Nc3 {[%clk 0:04:55.3]} 6... d5 {[%clk 0:04:49.4]}
7. Bg5 {[%clk 0:04:52.3]} 7... Be7 {[%clk 0:04:44.6]} 8. Be2 {[%clk 0:04:51.2]}
8... O-O {[%clk 0:04:43.2]} 9. O-O {[%clk 0:04:50.4]} 9... c6 {[%clk 0:04:41.1]}
10. d4 {[%clk 0:04:37.5]} 10... Re8 {[%clk 0:04:38.2]} 11. Re1 {[%clk
0:04:29.8]} 11... h6 {[%clk 0:04:35.8]} 12. Bxf6 {[%clk 0:04:28.8]} 12... Bxf6
{[%clk 0:04:35.7]} 13. Bd3 {[%clk 0:04:27.8]} 13... Bg4 {[%clk 0:04:33.3]} 14.
h3 {[%clk 0:04:17.6]} 14... Rxe1+ {[%clk 0:04:30.5]} 15. Qxe1 {[%clk 0:04:12.6]}
15... Bxf3 {[%clk 0:04:29.9]} 16. gxf3 {[%clk 0:04:09.4]} 16... Bxd4 {[%clk
0:04:29.8]} 17. Ne2 {[%clk 0:04:08]} 17... Bb6 {[%clk 0:04:15]} 18. Qc3 {[%clk
0:03:55.2]} 18... Nd7 {[%clk 0:04:12.1]} 19. Ng3 {[%clk 0:03:53.3]} 19... Qg5
{[%clk 0:04:08.2]} 20. Kg2 {[%clk 0:03:36.9]} 20... Nf6 {[%clk 0:03:59.7]} 21.
Rg1 {[%clk 0:03:33.8]} 21... Nh5 {[%clk 0:03:57]} 22. Kf1 {[%clk 0:03:30]} 22...
d4 {[%clk 0:03:25.8]} 23. Qe1 {[%clk 0:03:14.2]} 23... Nxg3+ {[%clk 0:03:20]}
24. Rxg3 {[%clk 0:03:11.1]} 24... Qf6 {[%clk 0:03:18.5]} 25. Qe4 {[%clk
0:03:06.4]} 25... g6 {[%clk 0:03:15.3]} 26. f4 {[%clk 0:02:41.4]} 26... Kf8
{[%clk 0:03:12.8]} 27. f5 {[%clk 0:02:37.2]} 27... Re8 {[%clk 0:03:10.4]} 28.
Qf4 {[%clk 0:02:09.1]} 28... g5 {[%clk 0:02:58.5]} 29. Qd2 {[%clk 0:02:02]}
29... Bc7 {[%clk 0:02:52]} 30. Rg1 {[%clk 0:01:55.1]} 30... Bf4 {[%clk 0:02:50]}
31. Qb4+ {[%clk 0:01:50.9]} 31... Qd6 {[%clk 0:02:33.6]} 32. Qxb7 {[%clk
0:01:38.2]} 32... Rb8 {[%clk 0:02:18.2]} 33. Qxa7 {[%clk 0:01:30.2]} 33... Rxb2
{[%clk 0:02:15.7]} 34. Kg2 {[%clk 0:01:10.6]} 34... Qd5+ {[%clk 0:02:02.8]} 35.
Kf1 {[%clk 0:01:06.9]} 35... Rxa2 {[%clk 0:01:56.5]} 36. Qb7 {[%clk 0:00:31.3]}
36... Ra1+ {[%clk 0:01:52.3]} 37. Ke2 {[%clk 0:00:29.1]} 37... Rxg1 {[%clk
0:01:50.2]} 38. Qc8+ {[%clk 0:00:22.5]} 38... Kg7 {[%clk 0:01:47]} 0-1

[Event "Live Chess"]
[Site "Chess.com"]
[Date "2023.05.20"]
[Round "-"]
[White "CheckThis4"]
[Black "ameetghasi100"]
[Result "1-0"]
[WhiteElo "2567"]
[BlackElo "2615"]
[TimeControl "300"]
[EndTime "14:20:22 PDT"]
[Termination "CheckThis4 won on time"]

1. e4 {[%clk 0:04:55.8]} 1... e5 {[%clk 0:04:58.6]} 2. Nf3 {[%clk 0:04:54.4]}
2... Nc6 {[%clk 0:04:57.7]} 3. Nc3 {[%clk 0:04:51.8]} 3... d6 {[%clk 0:04:52.3]}
4. d4 {[%clk 0:04:49.1]} 4... Bg4 {[%clk 0:04:49]} 5. d5 {[%clk 0:04:47.7]} 5...
Nd4 {[%clk 0:04:42]} 6. Be3 {[%clk 0:04:36.9]} 6... Nxf3+ {[%clk 0:04:03.7]} 7.
gxf3 {[%clk 0:04:35.3]} 7... Bd7 {[%clk 0:04:03.6]} 8. h4 {[%clk 0:04:28.9]}
8... Nf6 {[%clk 0:04:00.7]} 9. h5 {[%clk 0:04:25.5]} 9... c6 {[%clk 0:03:55.9]}
10. Qd2 {[%clk 0:04:21.2]} 10... Qa5 {[%clk 0:03:47.2]} 11. h6 {[%clk
0:04:16.1]} 11... g6 {[%clk 0:03:45.1]} 12. O-O-O {[%clk 0:04:10.6]} 12... Rc8
{[%clk 0:03:10.3]} 13. Kb1 {[%clk 0:04:05.9]} 13... Nh5 {[%clk 0:02:17.6]} 14.
dxc6 {[%clk 0:03:43]} 14... bxc6 {[%clk 0:02:12.6]} 15. Bc4 {[%clk 0:03:22]}
15... Be6 {[%clk 0:01:43.6]} 16. Bb3 {[%clk 0:03:12.2]} 16... Bxb3 {[%clk
0:01:21.3]} 17. axb3 {[%clk 0:03:10.6]} 17... Qc7 {[%clk 0:01:21.2]} 18. f4
{[%clk 0:03:01.5]} 18... exf4 {[%clk 0:01:16.2]} 19. Bxf4 {[%clk 0:03:00.7]}
19... Nxf4 {[%clk 0:01:15.5]} 20. Qxf4 {[%clk 0:03:00.3]} 20... Be7 {[%clk
0:01:14.9]} 21. Qe3 {[%clk 0:02:37.2]} 21... O-O {[%clk 0:01:07.1]} 22. Qd4
{[%clk 0:02:35.8]} 22... f6 {[%clk 0:01:06.6]} 23. f4 {[%clk 0:02:32.9]} 23...
Rb8 {[%clk 0:00:59.3]} 24. f5 {[%clk 0:02:30.9]} 24... g5 {[%clk 0:00:57.3]} 25.
Rhg1 {[%clk 0:02:29.2]} 25... Kf7 {[%clk 0:00:53.9]} 26. Qc4+ {[%clk 0:02:17.8]}
26... Ke8 {[%clk 0:00:53.3]} 27. Nd5 {[%clk 0:02:13.1]} 27... Qd7 {[%clk
0:00:47.7]} 28. Nxe7 {[%clk 0:02:06.6]} 28... Kxe7 {[%clk 0:00:47.6]} 29. e5
{[%clk 0:02:06]} 29... fxe5 {[%clk 0:00:43.8]} 30. Rxg5 {[%clk 0:02:04.7]} 30...
Rf7 {[%clk 0:00:40]} 31. Rg7 {[%clk 0:01:36.9]} 31... Rf8 {[%clk 0:00:37.8]} 32.
f6+ {[%clk 0:01:23.2]} 32... Ke8 {[%clk 0:00:36.4]} 33. Qe4 {[%clk 0:01:15.6]}
33... Kd8 {[%clk 0:00:24.7]} 34. Qxh7 {[%clk 0:01:06.1]} 34... Kc7 {[%clk
0:00:23.1]} 35. Qd3 {[%clk 0:01:01.2]} 35... d5 {[%clk 0:00:19.1]} 36. Qg3
{[%clk 0:00:54.8]} 36... Kb6 {[%clk 0:00:17.8]} 37. Qxe5 {[%clk 0:00:50.3]}
37... Rh8 {[%clk 0:00:14.7]} 38. Qd4+ {[%clk 0:00:45.7]} 38... Kb7 {[%clk
0:00:13.6]} 39. Re1 {[%clk 0:00:42.4]} 39... Qd6 {[%clk 0:00:10.9]} 40. Rxf7+
{[%clk 0:00:40.3]} 40... Kc8 {[%clk 0:00:08.3]} 41. Qxa7 {[%clk 0:00:37.3]}
41... Qb8 {[%clk 0:00:05.2]} 42. Qxb8+ {[%clk 0:00:34.8]} 42... Kxb8 {[%clk
0:00:02.8]} 43. h7 {[%clk 0:00:34.2]} 43... Rd8 {[%clk 0:00:00.2]} 44. Rg1
{[%clk 0:00:32.5]} 1-0

[Event "Live Chess"]
[Site "Chess.com"]
[Date "2023.05.20"]
[Round "-"]
[White "Inglaterra"]
[Black "AttackingSnowLeopard"]
[Result "0-1"]
[WhiteElo "2032"]
[BlackElo "2080"]
[TimeControl "300"]
[EndTime "14:20:31 PDT"]
[Termination "AttackingSnowLeopard won by resignation"]

1. e4 {[%clk 0:04:58.7]} 1... e5 {[%clk 0:04:57]} 2. Nf3 {[%clk 0:04:56.9]} 2...
Nc6 {[%clk 0:04:55.8]} 3. Bb5 {[%clk 0:04:54.7]} 3... a6 {[%clk 0:04:54.8]} 4.
Ba4 {[%clk 0:04:53.9]} 4... Nf6 {[%clk 0:04:53.5]} 5. d3 {[%clk 0:04:52.8]} 5...
b5 {[%clk 0:04:51.5]} 6. Bb3 {[%clk 0:04:51.4]} 6... Be7 {[%clk 0:04:51.2]} 7.
c3 {[%clk 0:04:49.9]} 7... O-O {[%clk 0:04:50.4]} 8. O-O {[%clk 0:04:49.1]} 8...
d6 {[%clk 0:04:48.6]} 9. Re1 {[%clk 0:04:48.2]} 9... Na5 {[%clk 0:04:47.7]} 10.
Bc2 {[%clk 0:04:46.5]} 10... c5 {[%clk 0:04:47.2]} 11. Nbd2 {[%clk 0:04:42.9]}
11... Bb7 {[%clk 0:04:46.2]} 12. Nf1 {[%clk 0:04:41.8]} 12... Re8 {[%clk
0:04:45]} 13. Ng3 {[%clk 0:04:40.5]} 13... Bf8 {[%clk 0:04:44.3]} 14. a4 {[%clk
0:04:36.8]} 14... g6 {[%clk 0:04:42.3]} 15. d4 {[%clk 0:04:25.4]} 15... cxd4
{[%clk 0:04:40.5]} 16. cxd4 {[%clk 0:04:24.2]} 16... Bg7 {[%clk 0:04:37.8]} 17.
d5 {[%clk 0:04:20.4]} 17... Nc4 {[%clk 0:04:35.4]} 18. axb5 {[%clk 0:04:15.8]}
18... axb5 {[%clk 0:04:33.7]} 19. Rxa8 {[%clk 0:04:14.1]} 19... Qxa8 {[%clk
0:04:33.3]} 20. h3 {[%clk 0:03:51.4]} 20... b4 {[%clk 0:04:29.9]} 21. Bd3 {[%clk
0:03:38.8]} 21... Ba6 {[%clk 0:04:25.3]} 22. b3 {[%clk 0:03:31.1]} 22... Na5
{[%clk 0:04:22.9]} 23. Be3 {[%clk 0:03:21.5]} 23... Rc8 {[%clk 0:04:19.1]} 24.
Bxa6 {[%clk 0:03:03.8]} 24... Qxa6 {[%clk 0:04:17.6]} 25. Nd2 {[%clk 0:03:02.6]}
25... Nd7 {[%clk 0:04:09.3]} 26. Qa1 {[%clk 0:02:43.9]} 26... Qb5 {[%clk
0:04:01.7]} 27. Rc1 {[%clk 0:02:31.4]} 27... Rxc1+ {[%clk 0:03:54.5]} 28. Qxc1
{[%clk 0:02:31.3]} 28... Bf8 {[%clk 0:03:49.1]} 29. Qc8 {[%clk 0:02:26]} 29...
Qb7 {[%clk 0:03:35.5]} 30. Qd8 {[%clk 0:02:18.9]} 30... Qb5 {[%clk 0:03:20.5]}
31. Bh6 {[%clk 0:02:07.2]} 31... Nb7 {[%clk 0:03:16.2]} 32. Qc8 {[%clk
0:02:00.7]} 32... Nbc5 {[%clk 0:03:08.9]} 33. Ngf1 {[%clk 0:01:19.1]} 33... Qb7
{[%clk 0:03:06.2]} 34. Qe8 {[%clk 0:01:15.7]} 34... Qb8 {[%clk 0:02:59]} 35.
Qxb8 {[%clk 0:01:12.1]} 35... Nxb8 {[%clk 0:02:57.3]} 36. Bxf8 {[%clk
0:01:09.2]} 36... Kxf8 {[%clk 0:02:56.6]} 37. Ne3 {[%clk 0:01:08.6]} 37... Ke7
{[%clk 0:02:50.2]} 38. Nec4 {[%clk 0:01:07.5]} 38... Nba6 {[%clk 0:02:48.2]} 39.
f3 {[%clk 0:01:06.5]} 39... Nc7 {[%clk 0:02:44.9]} 40. Kf2 {[%clk 0:01:06.1]}
40... Nb5 {[%clk 0:02:44.5]} 41. Ke3 {[%clk 0:01:05.2]} 41... Nd4 {[%clk
0:02:43.5]} 42. Na5 {[%clk 0:01:02.1]} 42... Kd7 {[%clk 0:02:40.8]} 43. Nc6
{[%clk 0:00:59.7]} 43... Nxc6 {[%clk 0:02:38.9]} 44. dxc6+ {[%clk 0:00:58.7]}
44... Kxc6 {[%clk 0:02:38.6]} 45. h4 {[%clk 0:00:54.1]} 45... f6 {[%clk
0:02:36.1]} 46. g3 {[%clk 0:00:52.7]} 46... d5 {[%clk 0:02:35.6]} 47. exd5+
{[%clk 0:00:51.3]} 47... Kxd5 {[%clk 0:02:35.5]} 48. f4 {[%clk 0:00:43.9]} 48...
exf4+ {[%clk 0:02:32.5]} 49. gxf4 {[%clk 0:00:43.8]} 49... f5 {[%clk 0:02:30]}
50. Nf3 {[%clk 0:00:35.2]} 50... Nxb3 {[%clk 0:02:27.5]} 51. Kd3 {[%clk
0:00:33.9]} 51... Nc5+ {[%clk 0:02:26.2]} 52. Kc2 {[%clk 0:00:32.5]} 52... Ke4
{[%clk 0:02:25]} 0-1

[Event "Live Chess"]
[Site "Chess.com"]
[Date "2023.05.20"]
[Round "-"]
[White "chrisbradgate"]
[Black "GEMdzq"]
[Result "0-1"]
[WhiteElo "861"]
[BlackElo "2236"]
[TimeControl "300"]
[EndTime "14:20:38 PDT"]
[Termination "GEMdzq won by checkmate"]

1. d4 {[%clk 0:04:59.1]} 1... Nf6 {[%clk 0:04:58.4]} 2. Bf4 {[%clk 0:04:57.6]}
2... e6 {[%clk 0:04:57.7]} 3. e3 {[%clk 0:04:56.9]} 3... c5 {[%clk 0:04:57.2]}
4. c3 {[%clk 0:04:55.5]} 4... Qb6 {[%clk 0:04:55.1]} 5. b3 {[%clk 0:04:52.5]}
5... Nc6 {[%clk 0:04:52.8]} 6. Nd2 {[%clk 0:04:51.7]} 6... d6 {[%clk 0:04:47.6]}
7. Be2 {[%clk 0:04:50]} 7... Nd5 {[%clk 0:04:44.5]} 8. Rc1 {[%clk 0:04:43.9]}
8... Nxf4 {[%clk 0:04:42.9]} 9. exf4 {[%clk 0:04:42.4]} 9... cxd4 {[%clk
0:04:41.5]} 10. cxd4 {[%clk 0:04:33.9]} 10... Qxd4 {[%clk 0:04:37.4]} 11. g3
{[%clk 0:04:21.5]} 11... Be7 {[%clk 0:04:24.3]} 12. Ngf3 {[%clk 0:04:20.2]}
12... Qb6 {[%clk 0:04:17.9]} 13. O-O {[%clk 0:04:18.3]} 13... O-O {[%clk
0:04:16.8]} 14. Ng5 {[%clk 0:04:07.1]} 14... h6 {[%clk 0:04:12.4]} 15. Ngf3
{[%clk 0:04:03.6]} 15... d5 {[%clk 0:04:04.2]} 16. Bd3 {[%clk 0:03:55.2]} 16...
Bd7 {[%clk 0:04:02.5]} 17. Bb1 {[%clk 0:03:52.7]} 17... Rac8 {[%clk 0:03:53.9]}
18. Qc2 {[%clk 0:03:51.7]} 18... g6 {[%clk 0:03:52.7]} 19. f5 {[%clk 0:03:38.9]}
19... exf5 {[%clk 0:03:46.6]} 20. Rce1 {[%clk 0:03:28.2]} 20... Bf6 {[%clk
0:03:45.3]} 21. Re2 {[%clk 0:03:11.9]} 21... Nd4 {[%clk 0:03:43.1]} 22. Nxd4
{[%clk 0:03:10.8]} 22... Rxc2 {[%clk 0:03:41.3]} 23. Bxc2 {[%clk 0:03:05.6]}
23... Bxd4 {[%clk 0:03:36.7]} 24. Nf3 {[%clk 0:03:01.9]} 24... Bb5 {[%clk
0:03:33.5]} 25. Nxd4 {[%clk 0:02:58.1]} 25... Qxd4 {[%clk 0:03:33.4]} 26. Rfe1
{[%clk 0:02:49.7]} 26... Bxe2 {[%clk 0:03:31]} 27. Rxe2 {[%clk 0:02:49]} 27...
Rc8 {[%clk 0:03:30.1]} 28. b4 {[%clk 0:02:27.8]} 28... Rxc2 {[%clk 0:03:27.8]}
29. Rxc2 {[%clk 0:02:24.7]} 29... Qd1+ {[%clk 0:03:27.1]} 30. Kg2 {[%clk
0:02:20.6]} 30... Qxc2 {[%clk 0:03:27]} 31. Kh3 {[%clk 0:02:19.4]} 31... g5
{[%clk 0:03:23.9]} 32. f3 {[%clk 0:02:15.9]} 32... h5 {[%clk 0:03:21.2]} 33. f4
{[%clk 0:02:11.3]} 33... g4+ {[%clk 0:03:19.7]} 34. Kh4 {[%clk 0:02:10.5]} 34...
f6 {[%clk 0:03:18.3]} 35. b5 {[%clk 0:02:02.5]} 35... Qxh2# {[%clk 0:03:16]} 0-1

[Event "Live Chess"]
[Site "Chess.com"]
[Date "2023.05.20"]
[Round "-"]
[White "OmeetAtara"]
[Black "TheSmoulderingMaster"]
[Result "1-0"]
[WhiteElo "1795"]
[BlackElo "1695"]
[TimeControl "300"]
[EndTime "14:20:44 PDT"]
[Termination "OmeetAtara won by resignation"]

1. d4 {[%clk 0:04:58.6]} 1... Nf6 {[%clk 0:04:58.8]} 2. Bg5 {[%clk 0:04:58]}
2... Ne4 {[%clk 0:04:57.5]} 3. Bf4 {[%clk 0:04:57.3]} 3... c6 {[%clk 0:04:56.9]}
4. f3 {[%clk 0:04:33.9]} 4... Nf6 {[%clk 0:03:23]} 5. e4 {[%clk 0:04:31.4]} 5...
Qa5+ {[%clk 0:03:21]} 6. c3 {[%clk 0:04:22.7]} 6... Qb6 {[%clk 0:03:18.7]} 7.
Qb3 {[%clk 0:04:21.2]} 7... Qxb3 {[%clk 0:03:14.6]} 8. axb3 {[%clk 0:04:21.1]}
8... d5 {[%clk 0:03:12.8]} 9. e5 {[%clk 0:04:18.7]} 9... Nh5 {[%clk 0:03:11.4]}
10. Be3 {[%clk 0:04:16.1]} 10... Na6 {[%clk 0:03:05.6]} 11. g4 {[%clk
0:04:12.9]} 11... c5 {[%clk 0:02:50.9]} 12. gxh5 {[%clk 0:03:52.3]} 12... cxd4
{[%clk 0:02:49.7]} 13. cxd4 {[%clk 0:03:48.2]} 13... Bf5 {[%clk 0:02:47.6]} 14.
Bxa6 {[%clk 0:03:46.2]} 14... bxa6 {[%clk 0:02:45.8]} 15. Rxa6 {[%clk
0:03:46.1]} 15... e6 {[%clk 0:02:43.9]} 16. Nc3 {[%clk 0:03:45.2]} 16... Bb4
{[%clk 0:02:38.9]} 17. Ne2 {[%clk 0:03:44.6]} 17... O-O {[%clk 0:02:37.5]} 18.
Ng3 {[%clk 0:03:43.3]} 18... Bd3 {[%clk 0:02:35]} 19. Ra4 {[%clk 0:03:41.9]}
19... a5 {[%clk 0:02:32.9]} 20. Kd2 {[%clk 0:03:41]} 20... Ba6 {[%clk
0:02:28.1]} 21. Rha1 {[%clk 0:03:38.7]} 21... Bb5 {[%clk 0:02:24.7]} 22. R4a2
{[%clk 0:03:35.5]} 22... Ba6 {[%clk 0:02:23.8]} 23. Ne2 {[%clk 0:03:34.3]} 23...
Rac8 {[%clk 0:02:20.7]} 24. Nc1 {[%clk 0:03:33.8]} 24... Rc7 {[%clk 0:02:14.3]}
25. Nd3 {[%clk 0:03:31.2]} 25... Bxd3 {[%clk 0:02:08.4]} 26. Kxd3 {[%clk
0:03:30.2]} 26... Rfc8 {[%clk 0:02:08.1]} 27. Rc1 {[%clk 0:03:26.4]} 27... h6
{[%clk 0:02:07.2]} 28. Rc2 {[%clk 0:03:22.1]} 28... Rb8 {[%clk 0:02:02.2]} 29.
Ra1 {[%clk 0:03:20.3]} 29... Be7 {[%clk 0:01:58.3]} 30. Na4 {[%clk 0:03:16.6]}
30... Rxb3+ {[%clk 0:01:54.3]} 31. Rc3 {[%clk 0:03:16.2]} 31... Rcb7 {[%clk
0:01:49.2]} 32. Rxb3 {[%clk 0:03:13.3]} 32... Rxb3+ {[%clk 0:01:47.9]} 33. Ke2
{[%clk 0:03:13.2]} 33... Rb4 {[%clk 0:01:39.7]} 34. Kd3 {[%clk 0:03:06.1]} 34...
Rb3+ {[%clk 0:01:37.7]} 35. Kc2 {[%clk 0:03:05.4]} 35... Rxe3 {[%clk 0:01:36.3]}
36. Nc5 {[%clk 0:03:02.4]} 36... Rxf3 {[%clk 0:01:31.5]} 37. Rxa5 {[%clk
0:03:01]} 37... Rf2+ {[%clk 0:01:29]} 38. Kc3 {[%clk 0:02:57.4]} 38... Rxh2
{[%clk 0:01:27.5]} 39. b4 {[%clk 0:02:56.7]} 39... Rh3+ {[%clk 0:01:26.1]} 40.
Nd3 {[%clk 0:02:55.4]} 40... Rxh5 {[%clk 0:01:23.1]} 41. b5 {[%clk 0:02:54.3]}
41... Rh1 {[%clk 0:01:18.6]} 42. b6 {[%clk 0:02:50.7]} 42... Rb1 {[%clk
0:01:17.2]} 43. Nb2 {[%clk 0:02:49.1]} 43... Rc1+ {[%clk 0:01:13.3]} 44. Kb3
{[%clk 0:02:48]} 44... Rc8 {[%clk 0:01:04.7]} 45. b7 {[%clk 0:02:46.7]} 45...
Rb8 {[%clk 0:01:03.6]} 46. Ra8 {[%clk 0:02:46]} 46... Rxa8 {[%clk 0:00:56.7]}
47. bxa8=Q+ {[%clk 0:02:44.7]} 47... Kh7 {[%clk 0:00:55.4]} 48. Qb7 {[%clk
0:02:44.6]} 1-0

[Event "Live Chess"]
[Site "Chess.com"]
[Date "2023.05.20"]
[Round "-"]
[White "Shepherds_Pie"]
[Black "ProfPoisson"]
[Result "1-0"]
[WhiteElo "1930"]
[BlackElo "1128"]
[TimeControl "300"]
[EndTime "14:20:49 PDT"]
[Termination "Shepherds_Pie won by resignation"]

1. c4 {[%clk 0:04:58]} 1... f5 {[%clk 0:04:53.4]} 2. Nc3 {[%clk 0:04:57.1]} 2...
e5 {[%clk 0:04:51.2]} 3. d4 {[%clk 0:04:53.5]} 3... exd4 {[%clk 0:04:47.5]} 4.
Qxd4 {[%clk 0:04:52.3]} 4... Nf6 {[%clk 0:04:46.4]} 5. Bg5 {[%clk 0:04:49.3]}
5... Be7 {[%clk 0:04:44.6]} 6. Nf3 {[%clk 0:04:48.2]} 6... O-O {[%clk
0:04:43.1]} 7. Rd1 {[%clk 0:04:45.3]} 7... Nc6 {[%clk 0:04:39.6]} 8. Qd2 {[%clk
0:04:42.3]} 8... Ne4 {[%clk 0:04:12.4]} 9. Nxe4 {[%clk 0:04:23.3]} 9... fxe4
{[%clk 0:04:07.3]} 10. Bxe7 {[%clk 0:04:21.8]} 10... Qxe7 {[%clk 0:04:04.1]} 11.
Nd4 {[%clk 0:04:20.6]} 11... Nxd4 {[%clk 0:04:01.5]} 12. Qxd4 {[%clk 0:04:18.5]}
12... Qb4+ {[%clk 0:03:55.8]} 13. Rd2 {[%clk 0:04:14.5]} 13... c5 {[%clk
0:03:31.2]} 14. Qxe4 {[%clk 0:04:11.6]} 14... d6 {[%clk 0:03:21.2]} 15. e3
{[%clk 0:04:06]} 15... Bf5 {[%clk 0:03:16.1]} 16. Qd5+ {[%clk 0:04:04.6]} 16...
Kh8 {[%clk 0:03:12.2]} 17. Be2 {[%clk 0:04:03.3]} 17... Rae8 {[%clk 0:03:00.7]}
18. O-O {[%clk 0:04:01.5]} 18... Be4 {[%clk 0:02:31.2]} 19. Qxd6 {[%clk
0:03:45.4]} 19... Rd8 {[%clk 0:02:28.5]} 20. Qxd8 {[%clk 0:03:43.2]} 20... Kg8
{[%clk 0:02:18.3]} 21. Qd6 {[%clk 0:03:33.7]} 21... Qa5 {[%clk 0:01:57.8]} 22.
Rfd1 {[%clk 0:03:30.1]} 22... Bc6 {[%clk 0:01:39.5]} 23. Bg4 {[%clk 0:03:27.7]}
23... Qb4 {[%clk 0:01:22.8]} 24. Be6+ {[%clk 0:03:25.4]} 1-0